Cogmind - Beta 9.2 @@@ ROGUE MODE // 2019.12.15 @ 17:52:37 Player: Exeight Result: Self-destructed Performance ------------- Evolutions (1) 500 Regions Visited (2) 400 Robots Destroyed (13) 65 Value Destroyed (473) 473 Prototype IDs (0) 0 Alien Tech Used (0) 0 Bonus (0) 0 TOTAL SCORE: 1438 Bonus ------- None Cogmind --------- Core Integrity 88/400 Matter 258/300 Energy 100/100 System Corruption 0% Temperature Cool (0) Movement Core (50) Location -9/Materials Parts ------- > --- POWER (1) -------- (None) > --- PROPULSION (2) --- (None) > --- UTILITY (4) ------ Targeting Computer Targeting Computer Improved Targeting Computer > --- WEAPON (2) ------- (None) > --- INVENTORY (4) ---- Aluminum Leg Aluminum Leg Heat Sink Targeting Computer Peak State ------------ > --- POWER ------------ Ion Engine > --- PROPULSION ------- Aluminum Leg Aluminum Leg > --- UTILITY ---------- Improved Heat Sink Small Storage Unit > --- WEAPON ----------- Small Laser Heavy Assault Rifle > --- INVENTORY -------- Aluminum Leg Aluminum Leg Heat Sink [Rating: 10] Favorites ----------- Power Ion Engine Engine Ion Engine Propulsion Light Treads Treads Light Treads Leg Aluminum Leg Utility Small Storage Unit Device Improved Heat Sink Storage Small Storage Unit Processor Targeting Computer Weapon Light Assault Rifle Energy Gun Medium Laser Ballistic Gun Light Assault Rifle Build | -11 -10 -9 ------- Run | Scr Mat Mat Slots Evolved 2 | . . 2 Power . | . . . Propulsion . | . . . Utility 2 | . . 2 Weapon . | . . . Parts Attached 24 | 3 12 9 Power 4 | 1 2 1 Engine 4 | 1 2 1 Core . | . . . Reactor . | . . . Propulsion 4 | . 4 . Treads 2 | . 2 . Leg 2 | . 2 . Wheel . | . . . Hover . | . . . Flight . | . . . Utility 7 | 1 2 4 Device 2 | . 2 . Storage 1 | 1 . . Processor 4 | . . 4 Hackware . | . . . Protection . | . . . Artifact . | . . . Weapon 9 | 1 4 4 Energy Gun 5 | . 4 1 Energy Cannon . | . . . Ballistic Gun 4 | 1 . 3 Ballistic Cannon . | . . . Launcher . | . . . Special Weapon . | . . . Impact Weapon . | . . . Slashing Weapon . | . . . Piercing Weapon . | . . . Special Melee Weapon . | . . . Unidentified Prototypes . | . . . Parts Lost 19 | . 8 11 Power 4 | . 2 2 Propulsion 4 | . 2 2 Utility 3 | . . 3 Weapon 8 | . 4 4 Highest Loss Streak 7 | . 6 7 Average Slot Usage (%) 71 | . 80 54 Engine 10 | . 11 7 Treads 14 | . 22 . Leg 4 | . 1 9 Device 6 | . 7 4 Storage 10 | . 14 4 Processor 6 | . . 18 Energy Gun 9 | . 11 6 Ballistic Gun 7 | . 10 3 Naked Turns 36 | . . 36 Heaviest Build 13 | 10 13 13 Greatest Support 40 | 3 40 20 Greatest Overweight (x) 3 | 3 1 3 Average Overweight (x) . | 1 . . Largest Inventory Capacity 6 | 6 6 6 Average Capacity 5 | 5 6 4 Most Carried 6 | 5 6 4 Average Carried 3 | 4 4 3 Final Capacity 6 | 6 6 4 Final Carried 5 | 5 3 4 Class Distribution -------------------- 83% | Mutant 16% | Scavenger-Mutant Dominant Class ---------------- Mutant | -10/Materials Mutant | -9/Materials Resources | -11 -10 -9 ----------- Run | Scr Mat Mat Matter Collected 377 | 216 156 5 Remotely . | . . . Salvage Created 561 | . 468 93 Parts 32 | . 26 6 Haulers Intercepted . | . . . Recyclers Shooed . | . . . Parts Field Recycled . | . . . Retrieved Matter . | . . . Parts Self-Destructed . | . . . Prevented . | . . . Kills | -11 -10 -9 ------- Run | Scr Mat Mat Combat Hostiles Destroyed 12 | . 10 2 Melee 1 | . 1 . Guns 10 | . 8 2 AOE 1 | . 1 . Classes Destroyed 3 | . 2 1 Builder 1 | . 1 . Grunt 11 | . 10 1 Sentry 1 | . . 1 Best Kill Streak 3 | . 3 2 Combat Bots Only 3 | . 3 2 Max Kills in Single Turn 2 | . 2 1 Gunslinging . | . . . Exploded 1 | . 1 . Melee 1 | . 1 . Uniques/NPCs Destroyed . | . . . Combat | -11 -10 -9 -------- Run | Scr Mat Mat Damage Taken 1894 | . 874 1020 Core 515 | . 203 312 Absorbed by Shields . | . . . Core Remaining (%) 59 | 100 18 . Volleys Fired 65 | . 49 16 Largest 2 | . 2 2 Hottest 70 | . 70 68 Shots Fired 95 | . 75 20 Gun 95 | . 75 20 Cannon . | . . . Launcher . | . . . Special . | . . . Kinetic 42 | . 32 10 Thermal 34 | . 27 7 Explosive . | . . . Electromagnetic 19 | . 16 3 Robot Hit Streak 11 | . 10 11 Robot Miss Streak 4 | . 4 3 Penetration Max . | . . . Secondary Targets . | . . . Shots Hit Robots 69 | . 52 17 Core Hits 34 | . 28 6 Critical Hits . | . . . Critical Kills . | . . . Critical Parts Destroyed . | . . . Melee Attacks . | . . . Impact . | . . . Slashing . | . . . Piercing . | . . . Sneak Attacks . | . . . Combat Hostiles . | . . . Follow-up Attacks . | . . . Damage Inflicted 930 | . 740 190 Guns 735 | . 552 183 Cannons . | . . . Explosions 163 | . 163 . Melee . | . . . Ramming 32 | . 25 7 Kinetic 255 | . 163 92 Thermal 453 | . 379 74 Explosive . | . . . Electromagnetic 190 | . 173 17 Impact . | . . . Slashing . | . . . Piercing . | . . . Highest Corruption . | . . . Average Corruption . | . . . Corruption Purged . | . . . Overload Shots . | . . . Overflow Damage . | . . . Projectiles . | . . . Explosions . | . . . Melee . | . . . Knockbacks 2 | . 1 1 Impact 2 | . 1 1 Kinetic . | . . . Secondary . | . . . Self-Inflicted Damage 57 | . 54 3 Shots 1 | . 1 . Rammed 13 | . 8 5 Targets Rammed 13 | . 8 5 Kicked . | . . . Crushed . | . . . Highest Temperature 297 | . 297 . Average Temperature 112 | . 112 . Received Heat Transfer 684 | . 450 234 Siege Activations . | . . . Robots Corrupted . | . . . Combat Hostiles . | . . . Parts Fried . | . . . Impact Corruptions . | . . . Robots Melted . | . . . Combat Hostiles . | . . . Parts Melted 1 | . 1 . Heat Transferred 919 | . 744 175 Parts Sabotaged . | . . . Parts Stolen . | . . . Parts Stripped . | . . . Power Chain Reactions 1 | . 1 . Missiles Intercepted . | . . . Alert | -11 -10 -9 ------- Run | Scr Mat Mat Peak Influence 150 | . 150 92 Average Influence 48 | . 56 44 Maximum Alert Level . | . . . Low Security (%) 100 | 100 100 100 Level 1 . | . . . Level 2 . | . . . Level 3 . | . . . Level 4 . | . . . Level 5 . | . . . High Security . | . . . Max Security . | . . . Squads Dispatched 3 | . 2 1 Investigation 1 | . 1 . Extermination . | . . . Reinforcement 2 | . 1 1 Assault . | . . . Garrison . | . . . Intercept . | . . . Construction Impeded . | . . . Haulers Reinforced . | . . . Stealth | -11 -10 -9 --------- Run | Scr Mat Mat Distress Signals 3 | . 1 2 Communications Jammed . | . . . Distress Signals . | . . . Times Spotted 37 | . 14 23 Peak Tracking Total 10 | . 6 10 Tactical Retreats 3 | . . 3 Traps | -11 -10 -9 ------- Run | Scr Mat Mat Traps Triggered 1 | . 1 . Indirectly . | . . . Trap Hack Attempts . | . . . Triggered . | . . . Disarmed . | . . . Reprogrammed . | . . . Reused . | . . . Traps Extracted . | . . . Installed . | . . . Triggered . | . . . Machines | -11 -10 -9 ---------- Run | Scr Mat Mat Machines Disabled 1 | . 1 . Max in Single Turn 1 | . 1 . Machines Sabotaged . | . . . Garrisons Compromised . | . . . Overloaded Fab Kills . | . . . Fab Network Shutdowns . | . . . Hacking | -11 -10 -9 --------- Run | Scr Mat Mat Machines Accessed 2 | . . 2 Terminals 2 | . . 2 Fabricators . | . . . Repair Stations . | . . . Recycling Units . | . . . Scanalyzers . | . . . Garrison Access . | . . . Total Hacks 2 | . . 2 Successful 1 | . . 1 Failed 1 | . . 1 Catastrophic . | . . . Database Lockouts . | . . . Manual . | . . . Terminals 2 | . . 2 Fabricators . | . . . Repair Stations . | . . . Recycling Units . | . . . Scanalyzers . | . . . Garrison Access . | . . . Terminal Hacks 1 | . . 1 Zone Layout 1 | . . 1 Fabricator Hacks . | . . . Repair Station Hacks . | . . . Recycling Unit Hacks . | . . . Scanalyzer . | . . . Garrison Access Hacks . | . . . Unauthorized Hacks . | . . . Terminals . | . . . Fabricators . | . . . Repair Stations . | . . . Recycling Units . | . . . Scanalyzers . | . . . Garrison Access . | . . . Data Cores Recovered . | . . . Used . | . . . Hacking Detections 1 | . . 1 Full Trace Events . | . . . Feedback Events . | . . . Feedback Blocked . | . . . Robot Schematics Acquired . | . . . Robots Built . | . . . Matter . | . . . Time . | . . . Total Robot Build Rating . | . . . Part Schematics Acquired . | . . . Parts Built . | . . . Matter . | . . . Time . | . . . Total Part Build Rating . | . . . Parts Repaired . | . . . Time . | . . . Parts Recycled . | . . . Recycled Matter . | . . . Retrieved Matter . | . . . Retrieved Components . | . . . Parts Scanalyzed . | . . . Part Schematics Acquired . | . . . Parts Damaged . | . . . Bothacking | -11 -10 -9 ------------ Run | Scr Mat Mat Used RIF Installer . | . . . Robots Hacked . | . . . Non-combat . | . . . Combat . | . . . Robot Hacks Applied . | . . . Relay Couplers Released . | . . . Robots Rewired . | . . . Allies Hacked . | . . . Hacks Repelled . | . . . Allies | -11 -10 -9 -------- Run | Scr Mat Mat Total Allies . | . . . Largest Group . | . . . Highest-Rated Group . | . . . Highest-Rated Ally . | . . . Total Orders . | . . . Ally Attacks . | . . . Total Damage . | . . . Kills . | . . . Allies Corrupted . | . . . Allies Melted . | . . . Intel | -11 -10 -9 ------- Run | Scr Mat Mat Robot Analysis Total . | . . . Derelict Logs Recovered . | . . . Drone Launches . | . . . Drone Recoveries . | . . . Exploration | -11 -10 -9 ------------- Run | Scr Mat Mat Turns Passed 923 | 71 545 307 Spaces Moved 570 | 47 238 285 Core 306 | 47 53 206 Treads 163 | . 163 . Legs 101 | . 22 79 Wheels . | . . . Hover . | . . . Flight . | . . . Fastest Speed 50 | 50 100 50 Average Speed 112 | 134 142 83 Slowest Speed 200 | 200 160 200 Overloaded Moves . | . . . Propulsion Burnouts . | . . . Robots Hopped . | . . . Cave-ins Triggered . | . . . Exploration Rate (%) 28 | 5 37 43 Regions Visited 2 Branch Regions . Pre-discovered Areas . | . . . Known Exits Taken . | . . . Unknown Exits Taken 2 | 1 1 . Scrap Searched . | . . . Spaces Dug . | . . . Terrain Destroyed 3 | . 3 . Melee . | . . . Projectile . | . . . AOE 3 | . 3 . Actions | -11 -10 -9 --------- Run | Scr Mat Mat Total 756 | 55 371 330 Wait 69 | . 57 12 Move 568 | 46 237 285 Hop . | . . . Pick Up 17 | 6 8 3 Fast Attach 10 | 2 1 7 Attach 13 | 1 10 2 Detach . | . . . Swap 1 | . 1 . Drop . | . . . Fire 65 | . 49 16 Melee . | . . . Ram 10 | . 6 4 Kick 1 | . . 1 Crush 2 | . 2 . Escape Stasis . | . . . Rewire . | . . . Trap . | . . . Miscellaneous . | . . . Route ------- -11/Scrapyard -10/Materials -9/Materials (discovered 2 exits: [*Min] / [*Sto]) History --------- Turn | Location | Event 3 | -11/Scrapyard | Discovered new exit (range 15) 72 | -11/Scrapyard | Entered Materials 304 | -10/Materials | Build established: Mutant 500 | -10/Materials | Core integrity fell below 50% 551 | -10/Materials | Lost 6 parts (1p2n3w) 571 | -10/Materials | Core integrity fell below 20% 608 | -10/Materials | Discovered new exit (range 8) 617 | -10/Materials | Entered another Materials area 617 | -9/Materials | Evolved 2 slots: Utility x2 786 | -9/Materials | Lost 7 parts (1p2n2u2w) 824 | -9/Materials | Discovered new exit (range 7) 846 | -9/Materials | Discovered new exit (range 10) 847 | -9/Materials | Core integrity fell below 50% 924 | -9/Materials | Self-destructed Last Messages --------------- Destabilizing: System interference. Targeting Computer temporarily disabled. Slammed into G-34 Mercenary. Slammed into L-31 Rogue. EXIT=FOUND Acquired Shotgun. O-16 Technician: "IFF HANDSHAKE FAILED. SECURING TERMINAL." O-16 Technician uses terminal to summon reinforcements. ALERT: Hostiles spotted, dispatching reinforcements to Terminal M011. O-16 Technician locks terminal. Acquired Ion Engine. Acquired EM Shotgun. K-01 Serf cleans the Nuclear Reactor. Slammed into K-01 Serf. K-01 Serf cleans the Nuclear Reactor. Shotgun destroyed. Door malfunctions. EM Shotgun destroyed. Ion Engine destroyed. Targeting Computer destroyed. Map ----- +----------------------------------------------------+ | ?????????????????????## #???????????# #?? | | ??????????????????????# [! #???????????# #?? | | ??????????????????????# ** #???????????# #?? | | ??????????????????????# !* ############# #?? | | ??????????????????????# ### | | ??????????????????????# | | ??????????????????????# ### | | ??????????????????????## ##T################# ##?? | | ???????????????????????# ####??????????######+###? | | ?????????????????????###/#######???????# #? | | ?????????????????????# #???????# """" #? | | ?????????????????????# #???????# """" #? | | ?????????????????????# #???????# """" #? | | ?????????????????????# """ """ #???????# #? | | ?????????????????????# """ """ #???????# """" ## | | ?????????????????????# """ """ #???????# """" + | | ?????????????????????# #???????# """" ## | | ?????????????????????# ! ######### #? | | ?????????????????????########/## ##+#######? | | ?????????????????########## #????? | | ?????????????????? ! # < #????? | | ?????????????????? # gu #????? | | ??????????????????" """ # g ##" "## #????? | | ??????????????????"""""" #s ##" !"| "## ###### | | ?????????????? """"" " ls ##"""""""## | | ????????????# @# ########### | | ??????????????############# #?????????# | | ?????????????????????????? #????????######+### | | ?????????????????????????? #???????????? ? | | ?????????????????????????# T / ??????????# """ | | ?????????????????????????# # ?????????# """ | | ?????????????????????????# # ????????# """ | | ?????????????????????????## ##? !???????# | | ??????????????????????????# #??? ??????# ! | | ?????????????????????????? #???? ?????####### | | ?????????????????????????? #?????##???????????? | | ?????????????????????????? ????????????????#### | | ??????????????????????????###??????????######## | | ???????????????????????????????????????# | | ???????????????????????????????????????# | | ???????????????????????????????????????# | | ???????????????????????????????????????# | | ???????????????????????????????????????# | | ???????????????????????????????????????# ## | | ????????????????????????????????# ###### ##### | | ????????????????????????????????# #???? | | ????????????????????????????????# ##### | | ????????????????????????????? + | | ????????????????????????????? # | | ??????????????????????????????""" """ # | +----------------------------------------------------+ Best States ------------- Heat Dissipation 42 Energy Generation 10 Energy Capacity 250 Matter Stores 300 Matter Capacity 300 Sight Range 16 Terrain Scan Density 10 Evasion (%) 50 Targeting Accuracy 21 Recoil Reduction 2 Item Schematics ----------------- None Robot Schematics ------------------ None Fabricated ------------ Nothing Alien Tech Used ----------------- None Achievements -------------- Fist Fight Challenges ------------ None Game ------ Seed TargetingSpikedRigger Manual? 0 Play Time 00:12:16 Cumulative 17.9 hours Start 2019.12.15 @ 17:41:44 End 2019.12.15 @ 17:52:37 Sessions 1 Manual Loads 0 Difficulty Rogue Special Mode None Game No. 29 Rogue 29 Adventurer 0 Explorer 0 Win Type - Total 0 Types 0/0/0/0/0/0/0 Lore% 12 Gallery% 17 Achievement% 18 Wizard Run 0 Options --------- ASCII 0 Keyboard 0 Movement Mouse Keybinds 0 Fullscreen 0 Font 32/SmallcapsGlow Map View 76x50 Tactical HUD 0 Map Filters NONE Filters NONE Steam 1 RUN: dbec6667-c2ad-4605-9b03-4104d476550a